bitfinex-derivatives/quotes_BTCF0:USTF0_20210108
["timestamp","ask_amount","ask_price","bid_price","bid_amount"]
[1610129906533,2.608e-05,40469.0,40459.0,0.0454678]
[1610129908635,0.02794776,40494.0,40459.0,0.1198678]
[1610129909037,0.13632608,40476.0,40467.0,0.13632608]
[1610129909539,0.13632608,40476.0,40467.0,0.55302608]
[1610129909735,0.06027696,40524.0,40467.0,0.55302608]
[1610129909935,0.06027696,40524.0,40467.0,0.13632608]
[1610129910136,0.06027696,40524.0,40474.0,3.537]
[1610129910334,0.02794879,40516.0,40474.0,3.537]
[1610129910538,0.08365,40516.0,40475.0,0.1569]
[1610129910937,0.13632608,40490.0,40482.0,0.13632608]
[1610129911938,0.08365,40516.0,40482.0,0.13632608]
[1610129912337,0.02764428,40515.0,40498.0,3.7883]
[1610129912541,0.02794559,40515.0,40498.0,3.7883]
[1610129912941,0.0748,40514.0,40512.0,0.13632608]
[1610129913239,0.02793834,40514.0,40498.0,3.7883]
[1610129913439,0.11707,40530.0,40513.0,0.58]
[1610129913942,0.02793741,40529.0,40513.0,0.58]
[1610129914142,0.10253741,40529.0,40513.0,0.58]
[1610129914546,0.02793311,40528.0,40513.0,0.58]
[1610129915141,0.13632608,40514.0,40513.0,0.58]
[1610129915742,0.09587,40548.0,40513.0,0.58]
[1610129916143,0.02793416,40547.0,40513.0,0.58]
[1610129916943,0.13632608,40521.0,40517.0,0.13632608]
[1610129917243,0.0749,40520.0,40517.0,0.13632608]
[1610129917444,0.02793321,40520.0,40517.0,0.13632608]
[1610129917742,0.0737,40519.0,40517.0,0.13632608]
[1610129918444,0.0737,40519.0,40518.0,3.4401]
[1610129918949,0.0737,40519.0,40518.0,3.55392]
[1610129919144,0.01936721,42603.0,40518.0,3.55392]
[1610129919352,0.06021576,40555.0,40518.0,3.55392]
[1610129919567,0.02792954,40547.0,40518.0,3.55392]
[1610129920146,0.0739,40546.0,40518.0,3.55392]
[1610129920352,0.02792954,40547.0,40518.0,3.55392]
[1610129920750,0.02793203,40545.0,40518.0,3.55392]
[1610129920946,0.02793137,40546.0,40529.0,0.13632608]
[1610129921147,0.02793103,40544.0,40529.0,0.13632608]
[1610129921449,0.0728,40543.0,40518.0,3.55392]
[1610129921647,0.02793018,40543.0,40518.0,3.55392]
[1610129922049,0.02793027,40547.0,40518.0,3.55392]
[1610129922350,0.02793047,40542.0,40518.0,3.55392]
[1610129922549,0.02793062,40546.0,40518.0,3.55392]
[1610129922750,0.02793103,40541.0,40518.0,3.55392]
[1610129922950,0.13632608,40519.0,40518.0,3.55392]
[1610129923553,0.16426027,40519.0,40518.0,3.55392]
[1610129923750,0.16426027,40519.0,40518.0,0.11382]
[1610129923952,0.16426027,40519.0,40509.0,0.08095]
[1610129924151,0.23726027,40519.0,40498.0,0.0737]
[1610129924350,0.00030118,40518.0,40492.0,0.0748]
[1610129924550,0.02793591,40518.0,40492.0,0.0748]
[1610129924754,0.02793591,40518.0,40491.0,4.0936]
[1610129925050,0.13632608,40492.0,40491.0,0.13632608]
[1610129925655,0.13632608,40492.0,40475.0,0.0741]
[1610129926054,0.0743,40491.0,40473.0,3.7115]
[1610129926857,0.13632608,40492.0,40423.0,0.2779]
[1610129927156,0.09872,40499.0,40461.0,0.13632608]
[1610129927554,0.0003013,40498.0,40461.0,0.13632608]
[1610129927758,0.0739,40497.0,40461.0,0.13632608]
[1610129928456,0.00030132,40496.0,40461.0,0.13632608]
[1610129928856,0.00030132,40498.0,40461.0,0.13632608]
[1610129929158,0.00030132,40495.0,40469.0,0.13632608]
[1610129929371,0.00030132,40497.0,40469.0,0.13632608]
[1610129929561,0.00030132,40497.0,40469.0,0.22364608]
[1610129929756,0.00030132,40494.0,40469.0,0.22364608]
[1610129929958,0.00030132,40496.0,40469.0,0.22364608]
[1610129930157,0.00030132,40493.0,40469.0,0.22364608]
[1610129930358,0.00030132,40495.0,40469.0,0.22364608]
[1610129930859,0.09872,40499.0,40469.0,0.22364608]
[1610129931058,0.09872,40499.0,40485.0,0.13632608]
[1610129931659,0.09872,40499.0,40481.0,0.11148]
[1610129931959,0.11615,40508.0,40481.0,0.11148]
[1610129932160,0.281,40511.0,40466.0,3.3877]
[1610129932659,0.00030133,40510.0,40466.0,3.3877]
[1610129933069,0.13632608,40467.0,40466.0,3.52402608]
[1610129933661,0.13632608,40467.0,40466.0,3.38794042]
[1610129933961,0.13632608,40467.0,40466.0,0.00024042]
[1610129934560,0.13632608,40467.0,40460.0,0.00024042]
[1610129934760,0.13632608,40467.0,40466.0,0.00024042]
[1610129934961,0.13632608,40467.0,40461.0,0.13656654]
[1610129935162,0.13632608,40467.0,40466.0,0.0002405]
[1610129935563,0.13632608,40467.0,40462.0,0.00024048]
[1610129935764,0.13632608,40467.0,40441.0,3.9344]
[1610129936667,0.13632608,40467.0,40422.0,0.1569]
[1610129936867,0.13632608,40467.0,40437.0,3.1408]
[1610129937067,0.13632608,40460.0,40446.0,0.13632608]
[1610129937566,0.13632608,40460.0,40437.0,3.1408]
[1610129939171,0.13632608,40460.0,40459.0,0.0219778]
[1610129939372,0.24984608,40460.0,40459.0,0.0219778]
[1610129942168,0.11967474,40477.0,40459.0,0.0219778]
[1610129942169,0.11299353,40477.0,40459.0,0.0219778]
[1610129942570,0.00681432,40480.0,40459.0,0.0219778]
[1610129942994,0.00683544,40490.0,40459.0,0.0219778]
[1610129943181,0.00683544,40490.0,40476.0,0.13632608]
[1610129943392,0.589858,40497.0,40476.0,0.13632608]
[1610129943393,0.0068515,40496.0,40476.0,0.13632608]
[1610129943671,0.0068515,40496.0,40473.0,0.08411]
[1610129944072,0.00685078,40494.0,40473.0,0.08411]
[1610129944475,0.00684719,40493.0,40473.0,0.08411]
[1610129944675,0.00684719,40493.0,40459.0,0.0219778]
[1610129944874,0.17766491,40492.0,40459.0,0.0219778]
[1610129945075,0.13632608,40464.0,40459.0,0.0219778]
[1610129950078,0.24148608,40464.0,40459.0,0.0219778]
[1610129957182,0.00030159,40463.0,40459.0,0.0219778]
[1610129957384,0.24148608,40464.0,40459.0,0.0219778]
[1610129958183,3.4028,40460.0,40459.0,0.0219778]
[1610129958787,3.40310163,40460.0,40459.0,0.02047015]
[1610129959890,3.40999436,40460.0,40459.0,0.02047015]
[1610129960586,3.40310163,40460.0,40459.0,0.02047015]
[1610129960986,3.40995603,40460.0,40459.0,0.02047015]
[1610129961488,0.01385316,40460.0,40459.0,0.02047015]
[1610129961987,0.00713596,40460.0,40459.0,0.02047015]
[1610129962189,0.00030163,40460.0,40459.0,0.02047015]
[1610129962689,0.00030166,40461.0,40459.0,0.02047015]
[1610129963189,0.00030164,40460.0,40459.0,0.02047015]
[1610129963588,0.12126,40473.0,40459.0,0.02047015]
[1610129963988,0.00030154,40472.0,40459.0,0.02047015]
[1610129964291,0.00030154,40472.0,40460.0,0.074]
[1610129964489,0.09012,40482.0,40460.0,0.074]
[1610129964490,0.00030152,40481.0,40460.0,0.074]
[1610129964689,0.00030152,40481.0,40459.0,0.02047015]
[1610129965288,0.13632608,40467.0,40459.0,0.02047015]
[1610129965490,0.00030152,40481.0,40459.0,0.02047015]
[1610129965790,0.09012,40482.0,40460.0,0.0743]
[1610129965990,0.00030148,40480.0,40460.0,0.0743]
[1610129966190,0.00030148,40481.0,40460.0,0.0743]
[1610129966390,0.10767,40490.0,40459.0,0.02047015]
[1610129966391,0.00030146,40479.0,40459.0,0.02047015]
[1610129966792,0.00030146,40480.0,40459.0,0.02047015]
[1610129966991,0.00030146,40478.0,40459.0,0.02047015]
[1610129967191,0.00030146,40479.0,40459.0,0.02047015]
[1610129967392,0.13632608,40460.0,40459.0,0.02047015]
[1610129968592,0.13632608,40460.0,40459.0,0.09367015]
[1610129968796,0.13632608,40460.0,40459.0,0.02047015]
[1610129969293,0.13632608,40466.0,40459.0,0.02047015]
[1610129970595,0.00030147,40465.0,40459.0,0.02047015]
[1610129971196,0.13632608,40466.0,40459.0,0.02047015]
[1610129971397,0.13632608,40466.0,40449.0,1.38716623]
[1610129971598,0.13632608,40466.0,40456.0,0.12792]
[1610129972497,0.00030145,40465.0,40456.0,0.12792]
[1610129972895,0.00030145,40465.0,40434.0,2.9648]
[1610129973296,0.13632608,40435.0,40434.0,2.9648]
[1610129973495,0.13632608,40435.0,40426.0,0.13632608]
[1610129973796,0.13632608,40435.0,40427.0,0.00023661]
[1610129974296,0.13632608,40435.0,40427.0,0.12606661]
[1610129974595,0.13632608,40435.0,40428.0,0.00023663]
[1610129974999,0.13632608,40435.0,40429.0,0.0744]
[1610129975198,0.13632608,40435.0,40428.0,0.00023663]
[1610129975400,0.13632608,40429.0,40427.0,0.12583]
[1610129976002,0.13632608,40429.0,40428.0,0.00023668]
[1610129978615,0.13632608,40429.0,40428.0,0.00023669]
[1610129979307,0.08962608,40429.0,40428.0,0.13656277]
[1610129979507,0.08452,40458.0,40428.0,0.13656277]
[1610129979716,0.08452,40458.0,40429.0,0.0733]
[1610129979907,0.0834,40468.0,40429.0,0.00023665]
[1610129980223,0.02058694,40473.0,40430.0,0.00023665]
[1610129980408,0.00030158,40467.0,40430.0,0.00023666]
[1610129980609,0.08034158,40467.0,40428.0,0.13632608]
[1610129980809,0.08004,40467.0,40431.0,0.00023665]
[1610129981010,0.00030156,40466.0,40429.0,0.07533665]
[1610129981209,0.00030156,40466.0,40432.0,0.00023665]
[1610129981509,0.13632608,40433.0,40430.0,0.00023665]
[1610129981712,0.13632608,40433.0,40427.0,0.12583]
[1610129981911,0.13632608,40433.0,40425.0,0.0733]
[1610129982111,0.13632608,40433.0,40431.0,0.00023668]
[1610129982310,0.13632608,40433.0,40431.0,0.11718]
[1610129982509,0.13632608,40433.0,40432.0,0.0002367]
[1610129984013,0.13632608,40433.0,40422.0,0.00023672]
[1610129984214,0.13632608,40433.0,40432.0,0.00023672]
[1610129984413,0.13632608,40433.0,40423.0,0.00023674]
[1610129984611,0.13632608,40433.0,40432.0,0.00023674]
[1610129985011,0.13632608,40433.0,40421.0,0.00023674]
[1610129985214,0.13632608,40433.0,40420.0,0.08383]
[1610129985412,0.13632608,40421.0,40420.0,0.08383]
[1610129985814,0.13632608,40421.0,40420.0,0.0840669]
[1610129986716,0.13632608,40421.0,40420.0,0.08383]
[1610129986916,0.13632608,40421.0,40420.0,0.15806691]
[1610129987215,0.13632608,40421.0,40420.0,0.08406691]
[1610129988316,0.13632608,40421.0,40420.0,0.15786691]
[1610129988518,0.13632608,40421.0,40420.0,0.08406691]
[1610129989517,0.13632608,40421.0,40420.0,0.15716691]
[1610129989717,0.13632608,40421.0,40420.0,0.08406691]
[1610129990518,0.13632608,40421.0,40420.0,0.0840669]
[1610129990717,0.13632608,40421.0,40420.0,0.1577669]
[1610129991119,0.13632608,40421.0,40420.0,0.0840669]
[1610129991519,0.13632608,40421.0,40420.0,0.0002369]
[1610129992019,0.13632608,40421.0,40418.0,0.0002369]
[1610129992223,0.13632608,40421.0,40420.0,0.073]
[1610129992721,0.13632608,40421.0,40420.0,0.07323692]
[1610129992922,0.13632608,40421.0,40420.0,0.00023692]
[1610129993521,0.13632608,40421.0,40418.0,0.00023692]
[1610129993820,0.13632608,40421.0,40420.0,0.00023694]
[1610129994025,0.13632608,40421.0,40419.0,0.00023694]
[1610129994220,0.13632608,40421.0,40420.0,0.00023696]
[1610129994725,0.13632608,40421.0,40418.0,0.00023696]
[1610129995221,0.13632608,40421.0,40419.0,0.00023698]
[1610129995822,0.5283,40420.0,40418.0,0.00023698]
[1610129996022,0.13632608,40421.0,40401.0,0.10646]
[1610129996224,3.8266,40419.0,40401.0,0.10646]
[1610129997224,0.11709,40420.0,40401.0,0.10646]
[1610129997924,0.13632608,40418.0,40401.0,0.10646]
[1610129999024,0.13632608,40418.0,40417.0,0.30023701]
[1610129999324,0.10722608,40418.0,40417.0,0.30023701]
[1610129999525,0.09632,40429.0,40417.0,0.30023701]
[1610129999526,0.08422,40429.0,40417.0,0.30023701]
[1610129999728,0.00683406,40439.0,40417.0,0.30023701]
[1610130000026,0.0068317,40441.0,40427.0,0.13632608]
[1610130000428,0.02036839,40444.0,40418.0,0.00023698]
[1610130000628,0.02036839,40444.0,40417.0,0.3]
[1610130000829,0.00682794,40442.0,40419.0,0.00023698]
[1610130001026,0.00682794,40442.0,40418.0,0.00023698]
[1610130001227,0.00681637,40437.0,40418.0,0.00023698]
[1610130001428,0.00681096,40435.0,40418.0,0.00023698]
[1610130001626,0.12351096,40435.0,40418.0,0.00023698]
[1610130001827,0.02028736,40434.0,40418.0,0.00023698]
[1610130002125,0.13632608,40419.0,40418.0,0.00023698]
[1610130004534,0.13632608,40419.0,40417.0,0.3]
[1610130004732,3.72002608,40419.0,40417.0,0.3]
[1610130005133,3.72679644,40419.0,40417.0,0.3]
[1610130005537,0.0067707,40418.0,40417.0,0.29849075]
[1610130005738,0.87618717,40418.0,40417.0,0.12999075]
[1610130005936,0.13632608,40367.0,40366.0,0.0742]
[1610130006434,0.13632608,40367.0,40366.0,0.07443717]
[1610130007735,0.11182608,40367.0,40366.0,0.07443717]
[1610130008737,3.1099,40387.0,40366.0,0.07443717]
[1610130008938,0.08838,40402.0,40366.0,0.18794717]
[1610130009248,0.08838,40402.0,40367.0,0.00023717]
[1610130009439,0.08838,40402.0,40367.0,0.15713717]
[1610130009841,0.08838,40402.0,40368.0,0.00023717]
[1610130010042,0.08838,40402.0,40379.0,0.13632608]
[1610130010336,0.08838,40402.0,40380.0,0.00023715]
[1610130011236,0.28779328,40416.0,40380.0,0.00023715]
[1610130011437,0.02025532,40415.0,40379.0,0.08385]
[1610130012036,0.13632608,40380.0,40369.0,0.13632608]
[1610130012238,0.13632608,40380.0,40366.0,0.11351]
[1610130012538,0.13632608,40380.0,40370.0,0.00023361]
[1610130012739,0.13632608,40380.0,40367.0,0.00023361]
[1610130012937,0.13632608,40380.0,40367.0,0.07433361]
[1610130013139,0.13632608,40380.0,40371.0,0.00023361]
[1610130013342,0.13632608,40380.0,40368.0,0.00023361]
[1610130013537,0.13632608,40380.0,40372.0,0.00023361]
[1610130013947,0.13632608,40380.0,40369.0,0.00023361]
[1610130014139,0.09493,40403.0,40374.0,0.13632608]
[1610130014760,0.09493,40403.0,40375.0,0.00023359]
[1610130014946,0.2772,40411.0,40375.0,0.00023359]
[1610130015139,0.2772,40411.0,40375.0,0.10907359]
[1610130015842,0.2772,40411.0,40376.0,0.00023356]
[1610130016141,0.2772,40411.0,40388.0,0.13632608]
[1610130016443,0.2772,40411.0,40388.0,0.25548608]
[1610130017742,0.2772,40411.0,40388.0,0.11916]
[1610130018142,0.13632608,40389.0,40388.0,0.11916]
[1610130018343,0.13632608,40389.0,40375.0,0.10884]
[1610130018841,0.13632608,40389.0,40376.0,0.00023359]
[1610130019445,0.13632608,40389.0,40375.0,0.10884]
[1610130019946,4.0987,40382.0,40375.0,0.10884]
[1610130020146,0.13632608,40376.0,40366.0,0.11351]
[1610130020349,0.13632608,40376.0,40331.0,0.0752]
[1610130020849,0.13632608,40376.0,40332.0,0.00023371]
[1610130021045,0.13632608,40376.0,40332.0,0.08792371]
[1610130021246,0.13632608,40376.0,40332.0,0.08769]
[1610130021747,0.13632608,40376.0,40333.0,0.00023371]
[1610130022148,0.10687,40383.0,40344.0,0.13632608]
[1610130022448,0.10687,40383.0,40345.0,0.0738]
[1610130022647,0.10687,40383.0,40345.0,0.07403371]
[1610130022847,0.10687,40383.0,40346.0,0.00023371]
[1610130023147,0.10687,40383.0,40347.0,0.0737]
[1610130023349,0.00030209,40382.0,40347.0,0.0737]
[1610130023547,0.00030209,40382.0,40346.0,0.00023371]
[1610130023748,0.10687,40383.0,40348.0,0.00023371]
[1610130023952,0.10687,40383.0,40345.0,0.00023371]
[1610130024247,0.10687,40383.0,40352.0,0.13632608]
[1610130024448,0.10687,40383.0,40345.0,0.00023371]
[1610130024849,0.10687,40383.0,40353.0,0.00023371]
[1610130025049,0.10687,40383.0,40353.0,0.08214]
[1610130025351,0.10687,40383.0,40354.0,0.0734]
[1610130025648,0.10687,40383.0,40354.0,0.07363373]
[1610130025951,0.2825,40391.0,40356.0,0.0746]
[1610130026350,0.00030211,40390.0,40357.0,0.00023373]
[1610130026950,0.54780211,40390.0,40357.0,0.00023373]
[1610130027174,0.54780211,40390.0,40354.0,0.00023379]
[1610130027455,0.0003022,40389.0,40354.0,0.00023379]
[1610130027658,0.0003022,40389.0,40174.0,0.1569]
[1610130027659,3.8273,40371.0,40304.0,2.9493]
[1610130027875,3.9203,40371.0,40355.0,0.0752]
[1610130028053,0.13632608,40356.0,40355.0,0.07496621]
[1610130028253,0.23672608,40356.0,40355.0,0.07496621]
[1610130028454,0.23702844,40356.0,40265.0,0.1569]
[1610130028653,0.23702844,40356.0,40269.0,2.51599167]
[1610130028852,3.8972,40353.0,40278.0,3.4049]
[1610130029252,0.0003024,40352.0,40279.0,0.01593249]
[1610130029461,0.0003024,40352.0,40279.0,0.09123249]
[1610130029755,0.0003024,40352.0,40280.0,0.00023398]
[1610130029953,0.0003024,40352.0,40280.0,0.09839398]
[1610130030153,0.13632608,40324.0,40307.0,0.13632608]
[1610130030555,0.13632608,40324.0,40308.0,0.00023401]
[1610130030756,0.13632608,40324.0,40308.0,0.15234401]
[1610130031157,0.13632608,40324.0,40309.0,0.00023403]
[1610130032355,0.13632608,40310.0,40308.0,0.07821]
[1610130032557,0.09289,40332.0,40308.0,0.07821]
[1610130032958,0.09289,40332.0,40309.0,0.0753]
[1610130033257,0.09289,40332.0,40308.0,0.07821]
[1610130034156,0.13632608,40309.0,40308.0,0.07821]
[1610130034358,0.13632608,40309.0,40308.0,0.15301]
[1610130034558,0.13632608,40309.0,40308.0,0.07821]
[1610130035762,0.10418,40323.0,40289.0,0.13632608]
[1610130035962,0.10418,40323.0,40289.0,0.25242608]
[1610130036161,0.10418,40323.0,40308.0,0.13632608]
[1610130036860,0.10418,40323.0,40301.0,2.892]
[1610130037062,0.10418,40323.0,40299.0,0.10826]
[1610130038264,0.13632608,40300.0,40299.0,0.10826]
[1610130041569,0.13632608,40300.0,40289.0,0.1161]
[1610130041764,0.13632608,40300.0,40283.0,2.872]
[1610130042265,0.13632608,40290.0,40287.0,0.13632608]
[1610130042467,0.10418,40323.0,40287.0,0.13632608]
[1610130042666,0.09289,40332.0,40287.0,0.13632608]
[1610130042871,0.1004,40356.0,40287.0,0.13632608]
[1610130043067,4.0019,40350.0,40287.0,0.13632608]
[1610130043367,4.13181547,40350.0,40287.0,0.13632608]
[1610130043567,0.00030264,40349.0,40280.0,0.09816]
[1610130043768,0.00030264,40349.0,40264.0,2.8379]
[1610130044170,0.13632608,40279.0,40264.0,2.8379]
[1610130044368,0.13632608,40279.0,40262.0,0.13632608]
[1610130045771,3.5962,40310.0,40262.0,0.13632608]
[1610130045971,3.5962,40310.0,40262.0,0.25794608]
[1610130046174,3.5962,40310.0,40281.0,0.13632608]
[1610130046372,0.45734654,40323.0,40281.0,0.11759]
[1610130048175,0.00030269,40322.0,40281.0,0.11759]
[1610130049878,0.0838,40323.0,40281.0,0.11759]
[1610130050077,1.0,40328.0,40281.0,0.11759]
[1610130050277,0.13632608,40293.0,40283.0,0.13632608]
[1610130050476,1.0,40328.0,40283.0,0.13632608]
[1610130050477,0.10814,40306.0,40284.0,0.0753]
[1610130050780,4e-05,40306.0,40284.0,0.0753]
[1610130051477,0.00030265,40349.0,40284.0,0.0753]
[1610130052175,0.00030265,40349.0,40302.0,0.13632608]
[1610130052377,0.029506,40349.0,40302.0,0.13632608]
[1610130052576,0.029506,40349.0,40302.0,0.23563608]
[1610130053378,0.00030265,40349.0,40303.0,0.0744]
[1610130053780,0.00030257,40348.0,40302.0,0.23563608]
[1610130054178,0.13632608,40303.0,40302.0,0.23563608]
[1610130054981,0.13632608,40303.0,40302.0,0.30993608]
[1610130055379,0.13632608,40303.0,40302.0,0.23563608]
[1610130055582,0.08297,40322.0,40302.0,0.23563608]
[1610130055779,0.08216,40341.0,40302.0,0.23563608]
[1610130056180,0.08216,40341.0,40310.0,0.13632608]
[1610130056381,0.00030254,40340.0,40310.0,0.13632608]
[1610130057686,0.02950268,40340.0,40310.0,0.13632608]
[1610130058185,0.13632608,40332.0,40328.0,0.13632608]
[1610130061090,0.3001,40370.0,40328.0,0.13632608]
[1610130061690,0.02949343,40369.0,40328.0,3.17112608]
[1610130062190,0.02949343,40369.0,40342.0,0.13632608]
[1610130062791,0.02949343,40369.0,40343.0,0.4845]
[1610130063293,0.02948888,40370.0,40343.0,0.4845]
[1610130063491,0.00030236,40368.0,40343.0,0.4845]
[1610130063691,0.00030231,40369.0,40343.0,0.4845]
[1610130064091,0.02948336,40382.0,40343.0,0.4845]
[1610130064296,0.08831,40383.0,40378.0,0.13632608]
[1610130064297,0.13632608,40379.0,40378.0,0.13632608]
[1610130064896,0.13662835,40379.0,40378.0,0.13481494]
[1610130065096,0.00030227,40379.0,40378.0,0.13481494]
[1610130065697,0.00030216,40393.0,40378.0,0.13481494]
[1610130065898,0.59596422,40408.0,40378.0,0.21267494]
[1610130065899,0.00030214,40379.0,40378.0,0.21267494]
[1610130066098,0.00030212,40392.0,40378.0,0.21267494]
[1610130066299,0.00030212,40392.0,40388.0,0.13632608]
[1610130066501,0.02946954,40407.0,40388.0,0.13632608]
[1610130066699,0.0003021,40391.0,40390.0,4.0745]
[1610130066903,0.00683722,40413.0,40390.0,4.0745]
[1610130066904,0.00030207,40406.0,40390.0,4.0745]
[1610130067301,0.00030205,40391.0,40390.0,4.0745]
[1610130067502,0.00686682,40420.0,40390.0,4.0745]
[1610130067702,0.48485169,40424.0,40390.0,4.0745]
[1610130067703,0.41791012,40424.0,40390.0,4.0745]
[1610130068203,0.13632608,40399.0,40398.0,0.13632608]
[1610130069004,0.01361778,40426.0,40398.0,0.13632608]
[1610130069806,0.67428259,40436.0,40387.0,0.11538]
[1610130069807,0.0752,40419.0,40387.0,0.11538]
[1610130070305,0.13632608,40388.0,40366.0,0.13632608]
[1610130070505,0.22700608,40388.0,40366.0,0.13632608]
[1610130072309,0.09068,40388.0,40381.0,0.13632608]
[1610130072510,0.09068,40388.0,40368.0,0.09115]
[1610130074214,0.22700608,40388.0,40380.0,0.13632608]
[1610130074812,0.09068,40388.0,40380.0,0.13632608]
[1610130075013,0.01359462,40414.0,40380.0,0.13632608]
[1610130075413,0.01360154,40417.0,40380.0,0.13632608]
[1610130075612,0.01360154,40417.0,40383.0,3.3173]
[1610130075814,0.08212,40418.0,40383.0,3.3173]
[1610130076015,0.01362843,40421.0,40383.0,3.3173]
[1610130076215,0.01363751,40423.0,40420.0,0.13632608]
[1610130076715,0.41913647,40426.0,40420.0,0.06083744]
[1610130077015,0.0136751,40432.0,40420.0,0.05932769]
[1610130078017,0.01368875,40437.0,40420.0,0.05932769]
[1610130078217,0.13632608,40421.0,40420.0,0.05932769]
[1610130079517,0.13632608,40421.0,40346.0,0.0735]
[1610130079717,0.13632608,40421.0,40361.0,3.6865]
[1610130080222,0.13632608,40369.0,40362.0,0.13632608]
[1610130080418,0.13632608,40369.0,40314.0,1.5]
[1610130080719,0.13632608,40369.0,40326.0,4.0264]
[1610130080918,0.13632608,40369.0,40326.0,4.15357]
[1610130081120,0.13632608,40369.0,40327.0,0.0734]
[1610130081821,0.13632608,40369.0,40327.0,1.5]
[1610130082218,0.13632608,40369.0,40360.0,0.13632608]
[1610130082628,0.09831,40375.0,40360.0,0.13632608]
[1610130082834,0.12808,40387.0,40360.0,0.13632608]
[1610130084322,0.12808,40387.0,40377.0,0.13632608]
[1610130084822,0.2827,40403.0,40377.0,0.13632608]
[1610130085122,0.2827,40403.0,40371.0,3.3998]
[1610130085323,0.367,40403.0,40371.0,3.3998]
[1610130085523,0.367,40403.0,40371.0,3.4743]
[1610130086023,0.0843,40403.0,40371.0,4.9743]
[1610130086222,0.0843,40403.0,40402.0,0.13632608]
[1610130086721,0.0843,40403.0,40378.0,0.09919]
[1610130086921,0.08460206,40403.0,40378.0,0.09919]
[1610130087122,0.00030206,40402.0,40378.0,0.09919]
[1610130088223,0.13632608,40396.0,40395.0,0.13632608]
[1610130088423,0.13632608,40396.0,40378.0,0.09919]
[1610130088822,0.00030208,40395.0,40378.0,0.09919]
[1610130089024,0.00030208,40395.0,40348.0,0.12289]
[1610130090428,0.03039887,40395.0,40372.0,0.13632608]
[1610130090926,0.03725187,40400.0,40372.0,0.13632608]
[1610130091126,0.03040016,40394.0,40372.0,0.13632608]
[1610130091326,0.1034222,40394.0,40372.0,0.13632608]
[1610130091526,0.10312,40394.0,40372.0,0.13632608]
[1610130091725,0.03040052,40393.0,40372.0,0.13632608]
[1610130092326,0.13632608,40373.0,40372.0,0.13632608]
[1610130092527,0.21515608,40373.0,40372.0,0.13632608]
[1610130092826,0.21545828,40373.0,40372.0,0.13632608]
[1610130094429,0.21545828,40373.0,40365.0,0.13632608]
[1610130094832,0.0003022,40372.0,40365.0,0.13632608]
[1610130095231,0.0818322,40372.0,40348.0,0.12289]
[1610130095533,0.08153,40372.0,40294.0,0.0748]
[1610130095733,0.00030224,40371.0,40284.0,3.316]
[1610130095933,0.00030224,40371.0,40298.0,0.00023036]
[1610130096130,0.00030224,40371.0,40298.0,0.12630036]
[1610130096334,0.13632608,40318.0,40306.0,0.13632608]
[1610130096731,0.13632608,40318.0,40307.0,0.00023044]
[1610130096967,0.13632608,40318.0,40307.0,0.08649]
[1610130098333,0.13632608,40308.0,40285.0,0.08049]
[1610130098534,0.22057608,40308.0,40285.0,0.08049]
[1610130099435,0.22057608,40308.0,40252.0,3.7457]
[1610130099436,0.00030262,40307.0,40252.0,3.7457]
[1610130099636,0.00030262,40307.0,40253.0,1.5741]
[1610130099846,0.00030262,40307.0,40253.0,1.67762064]
[1610130100137,0.22057608,40308.0,40254.0,0.00023064]
[1610130100348,0.08425,40308.0,40306.0,0.13632608]
[1610130101336,0.11321,40333.0,40306.0,0.13632608]
[1610130101536,0.00678944,40346.0,40306.0,0.13632608]
[1610130101736,0.00678944,40346.0,40306.0,0.24121608]
[1610130101941,0.00680426,40347.0,40306.0,0.24121608]
[1610130102338,0.13632608,40311.0,40306.0,0.24121608]
[1610130105142,0.13632608,40311.0,40306.0,0.10489]
[1610130105341,0.13632608,40311.0,40293.0,0.09714]
[1610130105742,0.13632608,40311.0,40254.0,1.7313]
[1610130105947,0.13632608,40311.0,40259.0,2.9762]
[1610130106443,0.10486,40319.0,40290.0,0.13632608]
[1610130106745,0.10486,40319.0,40282.0,0.11606]
[1610130108448,0.13632608,40286.0,40282.0,0.11606]
[1610130109747,0.13632608,40286.0,40282.0,0.12457993]
[1610130113253,0.13632608,40286.0,40282.0,0.00851993]
[1610130113449,0.66992608,40286.0,40282.0,0.00851993]
[1610130116158,0.66992608,40286.0,40282.0,0.00700534]
[1610130116550,0.13632608,40286.0,40282.0,0.00700534]
[1610130117951,0.12242608,40286.0,40282.0,0.00700534]
[1610130118369,0.12242608,40286.0,40285.0,0.13632608]
[1610130118560,0.10923,40291.0,40285.0,0.13632608]
[1610130118776,0.10561,40301.0,40285.0,0.13632608]
[1610130118979,0.10486,40319.0,40285.0,0.13632608]
[1610130119180,0.11342357,40328.0,40285.0,0.13632608]
[1610130119555,0.00030274,40327.0,40285.0,0.13632608]
[1610130120056,0.00030274,40327.0,40282.0,0.12000534]
[1610130120254,0.00030274,40327.0,40282.0,0.00700534]
[1610130121957,0.00030274,40327.0,40283.0,0.0752]
[1610130122256,0.00030274,40327.0,40283.0,0.1763]
[1610130122457,0.13632608,40305.0,40301.0,0.13632608]
[1610130123459,0.1044,40315.0,40301.0,0.13632608]
[1610130123660,0.1044,40315.0,40302.0,1.5]
[1610130123863,0.1006,40315.0,40302.0,1.5]
[1610130124060,0.10027,40328.0,40302.0,1.5]
[1610130124361,0.13632608,40337.0,40331.0,0.13632608]
[1610130124561,0.01318282,40359.0,40331.0,0.13632608]
[1610130124860,0.00030254,40336.0,40332.0,1.5]
[1610130125063,0.00030251,40358.0,40332.0,1.5]
[1610130125266,0.01319986,40364.0,40332.0,1.5]
[1610130125464,0.08014,40367.0,40332.0,1.5737]
[1610130125664,0.03051203,40363.0,40331.0,0.13632608]
[1610130125863,0.03050939,40366.0,40331.0,0.13632608]
[1610130126063,0.03050864,40362.0,40331.0,0.13632608]
[1610130126364,0.13632608,40349.0,40331.0,0.13632608]
[1610130126764,0.13632608,40349.0,40316.0,0.05831169]
[1610130127065,0.03050965,40348.0,40316.0,0.05831169]
[1610130127265,0.03050965,40348.0,40304.0,3.5332]
[1610130128265,0.00030245,40348.0,40304.0,3.5332]
[1610130128469,0.00030247,40347.0,40340.0,0.13632608]
[1610130128870,0.00030247,40348.0,40340.0,0.13632608]
[1610130129068,0.00030247,40346.0,40324.0,0.08653]
[1610130129367,0.00030247,40347.0,40324.0,0.08653]
[1610130129567,0.00030247,40345.0,40324.0,0.08653]
[1610130129968,0.0003025,40346.0,40324.0,0.08653]
[1610130130167,0.4699025,40344.0,40324.0,0.08653]
[1610130130371,0.13632608,40306.0,40298.0,0.13632608]
[1610130130871,0.13632608,40306.0,40277.0,3.0357]
[1610130131472,0.0003027,40305.0,40253.0,3.7106]